[Event "Titled Tuesday Blitz January 03 Early 2023"]
[White "Florescu, Codrut-Constantin"]
[Black "Kaplan, Avi Harrison"]
[WhiteFideId "1202200"]
[BlackFideId "30934559"]
[WhiteElo "2259"]
[BlackElo "2146"]
[Result "1-0"]
[Round "10"]
[TimeControl "180+2"]
[Date "2023.01.03"]
[WhiteClock "0:01:07"]
[BlackClock "0:00:01"]

1. e4 {[%clk 0:03:00]}  d6 {[%clk 0:02:58]} 2. d4 {[%clk 0:03:00]}  Nf6 {[%clk 0:02:58]} 3. Nc3 {[%clk 0:03:00]}  Nbd7 {[%clk 0:02:59]} 4. f4 {[%clk 0:02:59]}  e5 {[%clk 0:02:57]} 5. Nf3 {[%clk 0:02:56]}  Be7 {[%clk 0:02:51]} 6. Be3 {[%clk 0:02:53]}  Ng4 {[%clk 0:02:44]} 7. Bg1 {[%clk 0:02:53]}  exf4 {[%clk 0:02:44]} 8. Qd2 {[%clk 0:02:52]}  Ne3 {[%clk 0:02:41]} 9. Bxe3 {[%clk 0:02:51]}  fxe3 {[%clk 0:02:42]} 10. Qxe3 {[%clk 0:02:51]}  O-O {[%clk 0:02:42]} 11. O-O-O {[%clk 0:02:50]}  Re8 {[%clk 0:02:42]} 12. Kb1 {[%clk 0:02:49]}  c6 {[%clk 0:02:42]} 13. Bd3 {[%clk 0:02:48]}  b5 {[%clk 0:02:41]} 14. Rhf1 {[%clk 0:02:47]}  Nf8 {[%clk 0:02:35]} 15. e5 {[%clk 0:02:43]}  dxe5 {[%clk 0:02:30]} 16. Nxe5 {[%clk 0:02:42]}  Be6 {[%clk 0:02:13]} 17. Nxc6 {[%clk 0:02:40]}  Qb6 {[%clk 0:02:10]} 18. Nxe7+ {[%clk 0:02:39]}  Rxe7 {[%clk 0:02:10]} 19. Nd5 {[%clk 0:02:35]}  Bxd5 {[%clk 0:01:52]} 20. Qxe7 {[%clk 0:02:36]}  a5 {[%clk 0:01:37]} 21. Qc5 {[%clk 0:02:31]}  Qe6 {[%clk 0:01:27]} 22. Rde1 {[%clk 0:02:14]}  Bxa2+ {[%clk 0:01:09]} 23. Ka1 {[%clk 0:02:12]}  Qd5 {[%clk 0:01:10]} 24. Qxd5 {[%clk 0:02:10]}  Bxd5 {[%clk 0:01:10]} 25. Bxb5 {[%clk 0:02:10]}  Bxg2 {[%clk 0:01:09]} 26. Rf2 {[%clk 0:02:10]}  Bd5 {[%clk 0:01:09]} 27. c4 {[%clk 0:02:09]}  Rb8 {[%clk 0:01:06]} 28. b3 {[%clk 0:01:57]}  Be6 {[%clk 0:01:00]} 29. Ba4 {[%clk 0:01:54]}  g6 {[%clk 0:00:55]} 30. d5 {[%clk 0:01:54]}  Bf5 {[%clk 0:00:55]} 31. c5 {[%clk 0:01:50]}  Rd8 {[%clk 0:00:48]} 32. d6 {[%clk 0:01:41]}  Ne6 {[%clk 0:00:48]} 33. Rc1 {[%clk 0:01:31]}  Kg7 {[%clk 0:00:31]} 34. Rd2 {[%clk 0:01:30]}  Nf4 {[%clk 0:00:15]} 35. c6 {[%clk 0:01:28]}  Nd3 {[%clk 0:00:15]} 36. Rxd3 {[%clk 0:01:27]}  Bxd3 {[%clk 0:00:15]} 37. c7 {[%clk 0:01:26]}  Rxd6 {[%clk 0:00:15]} 38. c8=Q {[%clk 0:01:26]}  Rf6 {[%clk 0:00:14]} 39. Qc3 {[%clk 0:01:25]}  Bf5 {[%clk 0:00:14]} 40. Rd1 {[%clk 0:01:24]}  g5 {[%clk 0:00:14]} 41. Rd6 {[%clk 0:01:24]}  Be6 {[%clk 0:00:14]} 42. Ra6 {[%clk 0:01:18]}  Kg6 {[%clk 0:00:15]} 43. Rxa5 {[%clk 0:01:18]}  h5 {[%clk 0:00:14]} 44. b4 {[%clk 0:01:17]}  h4 {[%clk 0:00:15]} 45. Bc2+ {[%clk 0:01:16]}  Bf5 {[%clk 0:00:09]} 46. Rxf5 {[%clk 0:01:15]}  Rxf5 {[%clk 0:00:08]} 47. Qe5 {[%clk 0:01:15]}  h3 {[%clk 0:00:08]} 48. Qxf5+ {[%clk 0:01:14]}  Kg7 {[%clk 0:00:09]} 49. Qxg5+ {[%clk 0:01:13]}  Kf8 {[%clk 0:00:09]} 50. b5 {[%clk 0:01:13]}  f6 {[%clk 0:00:07]} 51. Qc5+ {[%clk 0:01:11]}  Kg7 {[%clk 0:00:07]} 52. b6 {[%clk 0:01:11]}  f5 {[%clk 0:00:07]} 53. b7 {[%clk 0:01:11]}  Kg6 {[%clk 0:00:05]} 54. b8=Q {[%clk 0:01:11]}  Kh5 {[%clk 0:00:03]} 55. Qxf5+ {[%clk 0:01:09]}  Kh4 {[%clk 0:00:01]} 56. Qbf4# {[%clk 0:01:07]} 1-0


[Site "https://www.chess.com"]

[Event "Titled Tuesday Blitz January 03 Early 2023"]
[White "Mazurkiewicz, Michal"]
[Black "MKlose11"]
[WhiteFideId "1124943"]
[WhiteElo "2145"]
[BlackElo "2554"]
[Result "1/2-1/2"]
[Round "10"]
[TimeControl "180+2"]
[Date "2023.01.03"]
[WhiteClock "0:00:04"]
[BlackClock "0:00:41"]

1. e4 {[%clk 0:03:00]}  e6 {[%clk 0:03:00]} 2. d3 {[%clk 0:03:00]}  d5 {[%clk 0:03:01]} 3. Nd2 {[%clk 0:03:01]}  Nf6 {[%clk 0:03:01]} 4. Ngf3 {[%clk 0:03:01]}  Be7 {[%clk 0:03:02]} 5. g3 {[%clk 0:03:02]}  b6 {[%clk 0:03:02]} 6. Bg2 {[%clk 0:03:02]}  dxe4 {[%clk 0:03:02]} 7. dxe4 {[%clk 0:03:02]}  Ba6 {[%clk 0:03:03]} 8. c4 {[%clk 0:03:02]}  Qd3 {[%clk 0:03:02]} 9. e5 {[%clk 0:02:34]}  Nfd7 {[%clk 0:03:01]} 10. Qe2 {[%clk 0:02:04]}  Qxe2+ {[%clk 0:03:00]} 11. Kxe2 {[%clk 0:02:05]}  Bb7 {[%clk 0:03:00]} 12. Re1 {[%clk 0:01:37]}  Nc6 {[%clk 0:02:58]} 13. Kf1 {[%clk 0:01:35]}  Nb4 {[%clk 0:02:56]} 14. Re2 {[%clk 0:01:25]}  O-O-O {[%clk 0:02:55]} 15. Nb3 {[%clk 0:01:15]}  Nc5 {[%clk 0:02:48]} 16. Nxc5 {[%clk 0:01:15]}  Bxc5 {[%clk 0:02:48]} 17. Bg5 {[%clk 0:01:14]}  Rd7 {[%clk 0:02:08]} 18. a3 {[%clk 0:01:14]}  Nc6 {[%clk 0:02:00]} 19. b4 {[%clk 0:01:14]}  Nd4 {[%clk 0:01:55]} 20. Nxd4 {[%clk 0:01:13]}  Bxg2+ {[%clk 0:01:52]} 21. Kxg2 {[%clk 0:01:14]}  Bxd4 {[%clk 0:01:53]} 22. Rd1 {[%clk 0:01:14]}  h6 {[%clk 0:01:51]} 23. Red2 {[%clk 0:01:05]}  hxg5 {[%clk 0:01:50]} 24. Rxd4 {[%clk 0:01:05]}  Rxd4 {[%clk 0:01:50]} 25. Rxd4 {[%clk 0:01:06]}  f6 {[%clk 0:01:49]} 26. exf6 {[%clk 0:00:59]}  gxf6 {[%clk 0:01:50]} 27. h4 {[%clk 0:01:00]}  gxh4 {[%clk 0:01:45]} 28. Rxh4 {[%clk 0:01:01]}  Rd8 {[%clk 0:01:38]} 29. Rh6 {[%clk 0:00:59]}  Rf8 {[%clk 0:01:38]} 30. Rh7 {[%clk 0:00:59]}  Kb7 {[%clk 0:01:38]} 31. b5 {[%clk 0:00:57]}  a6 {[%clk 0:01:38]} 32. bxa6+ {[%clk 0:00:54]}  Kc6 {[%clk 0:01:37]} 33. a7 {[%clk 0:00:18]}  Ra8 {[%clk 0:01:17]} 34. Rh6 {[%clk 0:00:18]}  Kd6 {[%clk 0:01:15]} 35. Rxf6 {[%clk 0:00:18]}  Rxa7 {[%clk 0:01:15]} 36. f4 {[%clk 0:00:16]}  Rxa3 {[%clk 0:01:04]} 37. f5 {[%clk 0:00:17]}  Ke5 {[%clk 0:01:05]} 38. Rxe6+ {[%clk 0:00:17]}  Kxf5 {[%clk 0:01:04]} 39. Rc6 {[%clk 0:00:17]}  Ra7 {[%clk 0:01:02]} 40. Kf3 {[%clk 0:00:16]}  Ra3+ {[%clk 0:00:58]} 41. Kg2 {[%clk 0:00:16]}  Ra7 {[%clk 0:00:59]} 42. Kf3 {[%clk 0:00:16]}  Ke5 {[%clk 0:00:59]} 43. g4 {[%clk 0:00:15]}  Ra3+ {[%clk 0:00:53]} 44. Kg2 {[%clk 0:00:15]}  Kf4 {[%clk 0:00:54]} 45. Rxc7 {[%clk 0:00:15]}  Ra2+ {[%clk 0:00:54]} 46. Kf1 {[%clk 0:00:14]}  Kf3 {[%clk 0:00:53]} 47. Rf7+ {[%clk 0:00:14]}  Kxg4 {[%clk 0:00:53]} 48. Rb7 {[%clk 0:00:14]}  Kf3 {[%clk 0:00:53]} 49. Kg1 {[%clk 0:00:08]}  Rb2 {[%clk 0:00:50]} 50. c5 {[%clk 0:00:06]}  Rg2+ {[%clk 0:00:48]} 51. Kf1 {[%clk 0:00:03]}  Rc2 {[%clk 0:00:44]} 52. Rf7+ {[%clk 0:00:03]}  Ke3 {[%clk 0:00:44]} 53. cxb6 {[%clk 0:00:04]}  Rb2 {[%clk 0:00:43]} 54. b7 {[%clk 0:00:04]}  Kd4 {[%clk 0:00:43]} 55. Ke1 {[%clk 0:00:03]}  Kd5 {[%clk 0:00:43]} 56. Kd1 {[%clk 0:00:04]}  Kc6 {[%clk 0:00:43]} 57. Kc1 {[%clk 0:00:04]}  Rb3 {[%clk 0:00:41]} 58. Rh7 {[%clk 0:00:05]}  Rb4 {[%clk 0:00:41]} 59. Kc2 {[%clk 0:00:05]}  Rxb7 {[%clk 0:00:40]} 60. Rxb7 {[%clk 0:00:04]}  Kxb7 {[%clk 0:00:41]} 1/2-1/2


[Site "https://www.chess.com"]

[Event "Titled Tuesday Blitz January 03 Early 2023"]
[White "Garv Gaur"]
[Black "Novikova, Galina"]
[WhiteFideId "45030839"]
[BlackFideId "4157095"]
[WhiteElo "2006"]
[BlackElo "2073"]
[Result "1-0"]
[Round "10"]
[TimeControl "180+2"]
[Date "2023.01.03"]
[WhiteClock "0:01:13"]
[BlackClock "0:00:31"]

1. d4 {[%clk 0:03:00]}  e6 {[%clk 0:02:59]} 2. c4 {[%clk 0:02:58]}  f5 {[%clk 0:02:58]} 3. g3 {[%clk 0:02:57]}  Nf6 {[%clk 0:02:59]} 4. Bg2 {[%clk 0:02:53]}  Be7 {[%clk 0:03:00]} 5. Nf3 {[%clk 0:02:53]}  O-O {[%clk 0:03:01]} 6. O-O {[%clk 0:02:53]}  d6 {[%clk 0:03:02]} 7. Nc3 {[%clk 0:02:54]}  Qe8 {[%clk 0:02:56]} 8. b4 {[%clk 0:02:50]}  a5 {[%clk 0:02:55]} 9. b5 {[%clk 0:02:50]}  Qh5 {[%clk 0:02:48]} 10. a4 {[%clk 0:02:48]}  Nbd7 {[%clk 0:02:46]} 11. e3 {[%clk 0:02:42]}  e5 {[%clk 0:02:42]} 12. dxe5 {[%clk 0:02:39]}  dxe5 {[%clk 0:02:43]} 13. Nd5 {[%clk 0:02:39]}  Bd6 {[%clk 0:02:40]} 14. Ba3 {[%clk 0:02:37]}  Ne4 {[%clk 0:02:12]} 15. Nd2 {[%clk 0:02:08]}  Qxd1 {[%clk 0:01:48]} 16. Rfxd1 {[%clk 0:02:09]}  Nec5 {[%clk 0:01:33]} 17. Nf3 {[%clk 0:01:48]}  h6 {[%clk 0:01:17]} 18. Nh4 {[%clk 0:01:44]}  Nb3 {[%clk 0:01:03]} 19. Bxd6 {[%clk 0:01:39]}  cxd6 {[%clk 0:01:03]} 20. Ra3 {[%clk 0:01:34]}  Nbc5 {[%clk 0:00:55]} 21. Ne7+ {[%clk 0:01:34]}  Kf7 {[%clk 0:00:52]} 22. Nexf5 {[%clk 0:01:32]}  g5 {[%clk 0:00:40]} 23. Nxd6+ {[%clk 0:01:31]}  Ke6 {[%clk 0:00:40]} 24. Bh3+ {[%clk 0:01:28]}  Kf6 {[%clk 0:00:37]} 25. Nhf5 {[%clk 0:01:20]}  Nb6 {[%clk 0:00:36]} 26. Nxc8 {[%clk 0:01:19]}  Raxc8 {[%clk 0:00:34]} 27. Rd6+ {[%clk 0:01:18]}  Kf7 {[%clk 0:00:32]} 28. Rxb6 {[%clk 0:01:15]}  Ne4 {[%clk 0:00:32]} 29. Nxh6+ {[%clk 0:01:14]}  Kg7 {[%clk 0:00:32]} 30. Bxc8 {[%clk 0:01:14]}  Rxc8 {[%clk 0:00:33]} 31. Nf5+ {[%clk 0:01:13]}  Kg8 {[%clk 0:00:31]} 32. Ne7+ {[%clk 0:01:13]} 1-0


[Site "https://www.chess.com"]

[Event "Titled Tuesday Blitz January 03 Early 2023"]
[White "Lehtosaari, Mauri"]
[Black "Melikhov, Evgeny V."]
[WhiteFideId "501999"]
[BlackFideId "4122046"]
[WhiteElo "2176"]
[BlackElo "2269"]
[Result "1/2-1/2"]
[Round "10"]
[TimeControl "180+2"]
[Date "2023.01.03"]
[WhiteClock "0:00:13"]
[BlackClock "0:00:04"]

1. d4 {[%clk 0:02:59]}  Nf6 {[%clk 0:02:59]} 2. Nf3 {[%clk 0:02:59]}  d5 {[%clk 0:02:59]} 3. Bg5 {[%clk 0:02:59]}  e6 {[%clk 0:02:58]} 4. e3 {[%clk 0:02:58]}  Be7 {[%clk 0:02:58]} 5. Bd3 {[%clk 0:02:58]}  Nbd7 {[%clk 0:02:57]} 6. Nbd2 {[%clk 0:02:58]}  O-O {[%clk 0:02:57]} 7. O-O {[%clk 0:02:58]}  Re8 {[%clk 0:02:58]} 8. c3 {[%clk 0:02:48]}  Nf8 {[%clk 0:02:56]} 9. Ne5 {[%clk 0:02:48]}  N6d7 {[%clk 0:02:53]} 10. Bxe7 {[%clk 0:02:25]}  Qxe7 {[%clk 0:02:53]} 11. f4 {[%clk 0:02:25]}  f6 {[%clk 0:02:51]} 12. Ng4 {[%clk 0:02:20]}  e5 {[%clk 0:02:46]} 13. fxe5 {[%clk 0:02:00]}  fxe5 {[%clk 0:02:46]} 14. dxe5 {[%clk 0:01:57]}  Nxe5 {[%clk 0:02:46]} 15. Nxe5 {[%clk 0:01:56]}  Qxe5 {[%clk 0:02:46]} 16. e4 {[%clk 0:01:40]}  dxe4 {[%clk 0:02:20]} 17. Nxe4 {[%clk 0:01:36]}  Bf5 {[%clk 0:02:03]} 18. Nf2 {[%clk 0:01:26]}  Bxd3 {[%clk 0:01:57]} 19. Qxd3 {[%clk 0:01:26]}  c6 {[%clk 0:01:47]} 20. Ng4 {[%clk 0:01:17]}  Qe4 {[%clk 0:01:39]} 21. Qg3 {[%clk 0:00:58]}  Ng6 {[%clk 0:01:29]} 22. h4 {[%clk 0:00:53]}  Qd5 {[%clk 0:01:21]} 23. Rad1 {[%clk 0:00:47]}  Qc5+ {[%clk 0:01:19]} 24. Kh2 {[%clk 0:00:45]}  Rad8 {[%clk 0:01:18]} 25. Rxd8 {[%clk 0:00:40]}  Rxd8 {[%clk 0:01:18]} 26. Re1 {[%clk 0:00:40]}  Qd6 {[%clk 0:01:03]} 27. Re8+ {[%clk 0:00:33]}  Kf7 {[%clk 0:01:03]} 28. Rxd8 {[%clk 0:00:24]}  Qxd8 {[%clk 0:01:02]} 29. h5 {[%clk 0:00:23]}  Nf8 {[%clk 0:00:54]} 30. Qf4+ {[%clk 0:00:20]}  Kg8 {[%clk 0:00:53]} 31. h6 {[%clk 0:00:21]}  Qh4+ {[%clk 0:00:46]} 32. Kg1 {[%clk 0:00:21]}  Qe1+ {[%clk 0:00:46]} 33. Kh2 {[%clk 0:00:22]}  Qh4+ {[%clk 0:00:41]} 34. Kg1 {[%clk 0:00:22]}  Qe1+ {[%clk 0:00:38]} 35. Qf1 {[%clk 0:00:22]}  Qxf1+ {[%clk 0:00:37]} 36. Kxf1 {[%clk 0:00:23]}  gxh6 {[%clk 0:00:35]} 37. Nxh6+ {[%clk 0:00:24]}  Kg7 {[%clk 0:00:35]} 38. Nf5+ {[%clk 0:00:24]}  Kf6 {[%clk 0:00:35]} 39. Nd6 {[%clk 0:00:25]}  b5 {[%clk 0:00:28]} 40. Ke2 {[%clk 0:00:25]}  Ke5 {[%clk 0:00:23]} 41. Nc8 {[%clk 0:00:20]}  a5 {[%clk 0:00:20]} 42. Ke3 {[%clk 0:00:20]}  Ng6 {[%clk 0:00:15]} 43. Nb6 {[%clk 0:00:17]}  a4 {[%clk 0:00:14]} 44. b3 {[%clk 0:00:17]}  axb3 {[%clk 0:00:13]} 45. axb3 {[%clk 0:00:18]}  Kd6 {[%clk 0:00:12]} 46. c4 {[%clk 0:00:16]}  bxc4 {[%clk 0:00:11]} 47. bxc4 {[%clk 0:00:17]}  Kc5 {[%clk 0:00:11]} 48. Nd7+ {[%clk 0:00:15]}  Kxc4 {[%clk 0:00:11]} 49. Nf6 {[%clk 0:00:16]}  h6 {[%clk 0:00:09]} 50. Ng4 {[%clk 0:00:16]}  h5 {[%clk 0:00:08]} 51. Nf6 {[%clk 0:00:16]}  h4 {[%clk 0:00:08]} 52. Ke4 {[%clk 0:00:16]}  c5 {[%clk 0:00:08]} 53. Kf5 {[%clk 0:00:15]}  Ne7+ {[%clk 0:00:08]} 54. Kg4 {[%clk 0:00:15]}  Kd4 {[%clk 0:00:08]} 55. Nd7 {[%clk 0:00:12]}  c4 {[%clk 0:00:07]} 56. Kf3 {[%clk 0:00:12]}  c3 {[%clk 0:00:07]} 57. Ke2 {[%clk 0:00:12]}  Ke4 {[%clk 0:00:06]} 58. Nc5+ {[%clk 0:00:12]}  Kf4 {[%clk 0:00:06]} 59. Na4 {[%clk 0:00:12]}  Kg3 {[%clk 0:00:06]} 60. Nxc3 {[%clk 0:00:12]}  Kxg2 {[%clk 0:00:06]} 61. Ne4 {[%clk 0:00:11]}  Nf5 {[%clk 0:00:06]} 62. Ng5 {[%clk 0:00:11]}  Ng3+ {[%clk 0:00:04]} 63. Ke3 {[%clk 0:00:11]}  Nf1+ {[%clk 0:00:04]} 64. Ke2 {[%clk 0:00:12]}  Ng3+ {[%clk 0:00:04]} 65. Ke3 {[%clk 0:00:12]}  Nf5+ {[%clk 0:00:04]} 66. Ke2 {[%clk 0:00:12]}  Nd4+ {[%clk 0:00:04]} 67. Ke3 {[%clk 0:00:13]}  Nf5+ {[%clk 0:00:04]} 68. Ke2 {[%clk 0:00:13]} 1/2-1/2


[Site "https://www.chess.com"]

[Event "Titled Tuesday Blitz January 03 Early 2023"]
[White "Gressmann, Moritz"]
[Black "Fiorito, Joaquin"]
[WhiteFideId "24695084"]
[BlackFideId "180173"]
[WhiteElo "2129"]
[BlackElo "2405"]
[Result "1-0"]
[Round "10"]
[TimeControl "180+2"]
[Date "2023.01.03"]
[WhiteClock "0:00:15"]
[BlackClock "0:00:25"]

1. c4 {[%clk 0:03:00]}  c6 {[%clk 0:02:59]} 2. g3 {[%clk 0:03:00]}  d5 {[%clk 0:03:00]} 3. cxd5 {[%clk 0:03:00]}  cxd5 {[%clk 0:03:00]} 4. Bg2 {[%clk 0:03:01]}  Nf6 {[%clk 0:03:00]} 5. d4 {[%clk 0:03:01]}  Nc6 {[%clk 0:03:00]} 6. Nc3 {[%clk 0:03:01]}  a6 {[%clk 0:03:00]} 7. Bg5 {[%clk 0:03:00]}  e6 {[%clk 0:02:55]} 8. Nf3 {[%clk 0:02:59]}  h6 {[%clk 0:02:54]} 9. Bxf6 {[%clk 0:02:59]}  Qxf6 {[%clk 0:02:55]} 10. e3 {[%clk 0:02:59]}  Bd6 {[%clk 0:02:52]} 11. O-O {[%clk 0:02:59]}  O-O {[%clk 0:02:52]} 12. Rc1 {[%clk 0:02:57]}  Bd7 {[%clk 0:02:49]} 13. Na4 {[%clk 0:02:50]}  Qd8 {[%clk 0:02:41]} 14. Nc5 {[%clk 0:02:50]}  Bc8 {[%clk 0:02:35]} 15. a3 {[%clk 0:02:47]}  Ne7 {[%clk 0:02:31]} 16. Qb3 {[%clk 0:02:30]}  b6 {[%clk 0:02:29]} 17. Nd3 {[%clk 0:02:29]}  Bb7 {[%clk 0:02:24]} 18. Rc2 {[%clk 0:02:29]}  Nc6 {[%clk 0:02:22]} 19. Rfc1 {[%clk 0:02:27]}  Na5 {[%clk 0:02:23]} 20. Qa2 {[%clk 0:02:27]}  f6 {[%clk 0:01:54]} 21. b3 {[%clk 0:02:15]}  Qd7 {[%clk 0:01:51]} 22. Bh3 {[%clk 0:02:05]}  Rfe8 {[%clk 0:01:35]} 23. Nfe1 {[%clk 0:02:00]}  Qb5 {[%clk 0:01:27]} 24. a4 {[%clk 0:01:36]}  Qd7 {[%clk 0:01:14]} 25. Ng2 {[%clk 0:01:34]}  Nc6 {[%clk 0:01:06]} 26. Ngf4 {[%clk 0:01:32]}  f5 {[%clk 0:00:59]} 27. Bg2 {[%clk 0:01:27]}  g5 {[%clk 0:00:58]} 28. Ne2 {[%clk 0:01:26]}  h5 {[%clk 0:00:53]} 29. h4 {[%clk 0:01:21]}  gxh4 {[%clk 0:00:53]} 30. gxh4 {[%clk 0:01:22]}  Rac8 {[%clk 0:00:51]} 31. Ndf4 {[%clk 0:01:16]}  Nb4 {[%clk 0:00:48]} 32. Qb1 {[%clk 0:01:02]}  Nxc2 {[%clk 0:00:48]} 33. Rxc2 {[%clk 0:01:03]}  Rxc2 {[%clk 0:00:47]} 34. Qxc2 {[%clk 0:01:04]}  Qe7 {[%clk 0:00:40]} 35. Nxh5 {[%clk 0:00:56]}  Qxh4 {[%clk 0:00:38]} 36. Nhf4 {[%clk 0:00:51]}  Qg5 {[%clk 0:00:31]} 37. Qd2 {[%clk 0:00:32]}  Kf7 {[%clk 0:00:29]} 38. Ng3 {[%clk 0:00:30]}  Rc8 {[%clk 0:00:23]} 39. Ngh5 {[%clk 0:00:26]}  Rh8 {[%clk 0:00:19]} 40. Ng3 {[%clk 0:00:25]}  Bxf4 {[%clk 0:00:18]} 41. exf4 {[%clk 0:00:25]}  Qf6 {[%clk 0:00:18]} 42. Qc3 {[%clk 0:00:22]}  Rc8 {[%clk 0:00:16]} 43. Qb4 {[%clk 0:00:22]}  Qd8 {[%clk 0:00:16]} 44. Qd2 {[%clk 0:00:16]}  Qd6 {[%clk 0:00:16]} 45. Qe2 {[%clk 0:00:15]}  Qxf4 {[%clk 0:00:15]} 46. Qh5+ {[%clk 0:00:15]}  Ke7 {[%clk 0:00:14]} 47. Qh7+ {[%clk 0:00:15]}  Kd6 {[%clk 0:00:13]} 48. Qxb7 {[%clk 0:00:14]}  Rc1+ {[%clk 0:00:13]} 49. Bf1 {[%clk 0:00:14]}  Qxd4 {[%clk 0:00:14]} 50. Qb8+ {[%clk 0:00:11]}  Rc7 {[%clk 0:00:13]} 51. Qd8+ {[%clk 0:00:11]}  Kc6 {[%clk 0:00:12]} 52. Qa8+ {[%clk 0:00:10]}  Kd7 {[%clk 0:00:12]} 53. Qxa6 {[%clk 0:00:10]}  f4 {[%clk 0:00:12]} 54. Bb5+ {[%clk 0:00:10]}  Ke7 {[%clk 0:00:12]} 55. Nf1 {[%clk 0:00:07]}  Qg7+ {[%clk 0:00:11]} 56. Kh1 {[%clk 0:00:06]}  f3 {[%clk 0:00:12]} 57. Ng3 {[%clk 0:00:04]}  Qh6+ {[%clk 0:00:12]} 58. Kg1 {[%clk 0:00:04]}  Qh3 {[%clk 0:00:11]} 59. Bf1 {[%clk 0:00:05]}  Qg4 {[%clk 0:00:08]} 60. Qxb6 {[%clk 0:00:05]}  Qf4 {[%clk 0:00:09]} 61. a5 {[%clk 0:00:03]}  Qd6 {[%clk 0:00:10]} 62. Qxd6+ {[%clk 0:00:02]}  Kxd6 {[%clk 0:00:10]} 63. b4 {[%clk 0:00:03]}  e5 {[%clk 0:00:11]} 64. b5 {[%clk 0:00:02]}  e4 {[%clk 0:00:11]} 65. b6 {[%clk 0:00:02]}  Rb7 {[%clk 0:00:11]} 66. a6 {[%clk 0:00:02]}  Rxb6 {[%clk 0:00:11]} 67. a7 {[%clk 0:00:03]}  Rb1 {[%clk 0:00:08]} 68. a8=Q {[%clk 0:00:03]}  e3 {[%clk 0:00:08]} 69. Qd8+ {[%clk 0:00:03]}  Kc5 {[%clk 0:00:08]} 70. fxe3 {[%clk 0:00:04]}  d4 {[%clk 0:00:08]} 71. Kf2 {[%clk 0:00:05]}  d3 {[%clk 0:00:09]} 72. Be2 {[%clk 0:00:05]}  dxe2 {[%clk 0:00:09]} 73. Nxe2 {[%clk 0:00:05]}  fxe2 {[%clk 0:00:09]} 74. Kxe2 {[%clk 0:00:06]}  Rb2+ {[%clk 0:00:09]} 75. Kf3 {[%clk 0:00:05]}  Rb3 {[%clk 0:00:10]} 76. Qc7+ {[%clk 0:00:05]}  Kb4 {[%clk 0:00:10]} 77. Qb7+ {[%clk 0:00:05]}  Kc3 {[%clk 0:00:11]} 78. Qxb3+ {[%clk 0:00:06]}  Kxb3 {[%clk 0:00:12]} 79. Ke4 {[%clk 0:00:06]}  Kc4 {[%clk 0:00:12]} 80. Ke5 {[%clk 0:00:07]}  Kc5 {[%clk 0:00:13]} 81. e4 {[%clk 0:00:07]}  Kc6 {[%clk 0:00:14]} 82. Ke6 {[%clk 0:00:08]}  Kc7 {[%clk 0:00:15]} 83. Ke7 {[%clk 0:00:07]}  Kc6 {[%clk 0:00:16]} 84. e5 {[%clk 0:00:08]}  Kd5 {[%clk 0:00:17]} 85. e6 {[%clk 0:00:08]}  Ke5 {[%clk 0:00:17]} 86. Kd7 {[%clk 0:00:09]}  Kf5 {[%clk 0:00:18]} 87. e7 {[%clk 0:00:10]}  Kf6 {[%clk 0:00:19]} 88. e8=Q {[%clk 0:00:11]}  Kg5 {[%clk 0:00:20]} 89. Qf7 {[%clk 0:00:11]}  Kg4 {[%clk 0:00:20]} 90. Qf6 {[%clk 0:00:12]}  Kh3 {[%clk 0:00:21]} 91. Qg5 {[%clk 0:00:12]}  Kh2 {[%clk 0:00:22]} 92. Ke6 {[%clk 0:00:13]}  Kh1 {[%clk 0:00:23]} 93. Ke5 {[%clk 0:00:14]}  Kh2 {[%clk 0:00:24]} 94. Kf4 {[%clk 0:00:14]}  Kh1 {[%clk 0:00:25]} 95. Kf3 {[%clk 0:00:15]}  Kh2 {[%clk 0:00:25]} 96. Qg2# {[%clk 0:00:15]} 1-0


[Site "https://www.chess.com"]

[Event "Titled Tuesday Blitz January 03 Early 2023"]
[White "Viskelis, Darius"]
[Black "Bettalli, Francesco"]
[WhiteFideId "12800830"]
[BlackFideId "2816453"]
[WhiteElo "2166"]
[BlackElo "2252"]
[Result "1-0"]
[Round "10"]
[TimeControl "180+2"]
[Date "2023.01.03"]
[WhiteClock "0:00:19"]
[BlackClock "0:00:28"]

1. e4 {[%clk 0:03:00]}  g6 {[%clk 0:02:38]} 2. h4 {[%clk 0:03:00]}  h5 {[%clk 0:02:37]} 3. d4 {[%clk 0:02:58]}  c6 {[%clk 0:02:32]} 4. c4 {[%clk 0:02:53]}  Bg7 {[%clk 0:02:31]} 5. Nc3 {[%clk 0:02:52]}  d6 {[%clk 0:02:30]} 6. Be3 {[%clk 0:02:50]}  Nd7 {[%clk 0:02:31]} 7. f3 {[%clk 0:02:48]}  e5 {[%clk 0:02:31]} 8. d5 {[%clk 0:02:42]}  c5 {[%clk 0:02:31]} 9. Nh3 {[%clk 0:02:33]}  Qxh4+ {[%clk 0:02:28]} 10. Kd2 {[%clk 0:02:30]}  Qe7 {[%clk 0:02:28]} 11. Kc2 {[%clk 0:02:28]}  a6 {[%clk 0:02:28]} 12. a4 {[%clk 0:02:24]}  Nf8 {[%clk 0:02:23]} 13. Ng5 {[%clk 0:02:20]}  Bh6 {[%clk 0:02:13]} 14. Qd2 {[%clk 0:02:08]}  f6 {[%clk 0:02:07]} 15. Ne6 {[%clk 0:02:04]}  Nxe6 {[%clk 0:02:06]} 16. dxe6 {[%clk 0:01:58]}  Bxe3 {[%clk 0:02:04]} 17. Qxe3 {[%clk 0:01:53]}  Bxe6 {[%clk 0:02:03]} 18. g4 {[%clk 0:01:53]}  h4 {[%clk 0:01:38]} 19. g5 {[%clk 0:01:52]}  fxg5 {[%clk 0:01:38]} 20. Bh3 {[%clk 0:01:52]}  g4 {[%clk 0:01:29]} 21. Bxg4 {[%clk 0:01:49]}  Bxg4 {[%clk 0:01:29]} 22. Nd5 {[%clk 0:01:47]}  Qd7 {[%clk 0:01:17]} 23. fxg4 {[%clk 0:01:38]}  Qxg4 {[%clk 0:01:13]} 24. Nc7+ {[%clk 0:01:35]}  Kd7 {[%clk 0:01:13]} 25. Nxa8 {[%clk 0:01:35]}  Nf6 {[%clk 0:01:11]} 26. Nb6+ {[%clk 0:01:33]}  Kc6 {[%clk 0:01:11]} 27. Nd5 {[%clk 0:01:26]}  Qxe4+ {[%clk 0:01:04]} 28. Qxe4 {[%clk 0:01:18]}  Nxe4 {[%clk 0:01:05]} 29. Ne7+ {[%clk 0:01:05]}  Kd7 {[%clk 0:01:05]} 30. Nxg6 {[%clk 0:01:05]}  Rg8 {[%clk 0:01:01]} 31. Nxh4 {[%clk 0:01:03]}  Rg4 {[%clk 0:00:56]} 32. Rag1 {[%clk 0:00:57]}  Ng3 {[%clk 0:00:56]} 33. Kb3 {[%clk 0:00:45]}  b5 {[%clk 0:00:51]} 34. axb5 {[%clk 0:00:44]}  axb5 {[%clk 0:00:52]} 35. Nf5 {[%clk 0:00:39]}  bxc4+ {[%clk 0:00:44]} 36. Ka2 {[%clk 0:00:38]}  Nxf5 {[%clk 0:00:38]} 37. Rxg4 {[%clk 0:00:37]}  Kc6 {[%clk 0:00:35]} 38. Rxc4 {[%clk 0:00:37]}  Nd4 {[%clk 0:00:33]} 39. Rxd4 {[%clk 0:00:35]}  cxd4 {[%clk 0:00:29]} 40. Kb3 {[%clk 0:00:29]}  Kb5 {[%clk 0:00:29]} 41. Kc2 {[%clk 0:00:28]}  Kc4 {[%clk 0:00:28]} 42. Rh6 {[%clk 0:00:27]}  Kd5 {[%clk 0:00:27]} 43. b4 {[%clk 0:00:26]}  e4 {[%clk 0:00:27]} 44. b5 {[%clk 0:00:25]}  Kc5 {[%clk 0:00:26]} 45. b6 {[%clk 0:00:20]}  Kxb6 {[%clk 0:00:26]} 46. Rxd6+ {[%clk 0:00:20]}  Kc5 {[%clk 0:00:27]} 47. Rd8 {[%clk 0:00:20]}  Kc4 {[%clk 0:00:27]} 48. Rc8+ {[%clk 0:00:19]}  Kd5 {[%clk 0:00:27]} 49. Rd8+ {[%clk 0:00:19]}  Ke5 {[%clk 0:00:28]} 50. Kd2 {[%clk 0:00:19]} 1-0


[Site "https://www.chess.com"]